Cogmind - Beta 14 @@@ ROGUE MODE // 2024.11.04 @ 14:45:24 Player: 7604 Result: Destroyed by G-47 Trooper with Particle Gun Performance ------------- Evolutions (0) 0 Regions Visited (2) 400 Robots Destroyed (16) 80 Value Destroyed (428) 428 Prototype IDs (0) 0 Alien Tech Used (0) 0 Bonus (0) 0 TOTAL SCORE: 908 Bonus ------- None Cogmind --------- Core Integrity 0/250 Matter 296/300 Energy 124/125 System Corruption 3% Temperature Cool (9) Movement Walking (120) Location -10/Mines Parts ------- > --- POWER (1) -------- Light Ion Engine > --- PROPULSION (2) --- Aluminum Leg Aluminum Leg > --- UTILITY (2) ------ Improved Heat Sink Medium Storage Unit > --- WEAPON (2) ------- Light Assault Rifle > --- INVENTORY (10) --- Aluminum Leg Aluminum Leg Aluminum Leg Aluminum Leg Heat Sink Heat Sink High-capacity Storage Unit Utility Shielding Grenade Launcher Peak State ------------ > --- POWER ------------ Light Nuclear Core > --- PROPULSION ------- Aluminum Leg Aluminum Leg > --- UTILITY ---------- Heat Sink Medium Storage Unit > --- WEAPON ----------- Medium Laser Small Laser > --- INVENTORY -------- Ion Engine Aluminum Leg Aluminum Leg Aluminum Leg Aluminum Leg Heat Sink High-capacity Storage Unit Utility Shielding Light Assault Rifle Grenade Launcher [Rating: 10] Favorites ----------- Power Light Ion Engine Engine Light Ion Engine Power Core Light Nuclear Core Propulsion Aluminum Leg Leg Aluminum Leg Utility Heat Sink Device Heat Sink Storage Medium Storage Unit Protection Utility Shielding Weapon Light Assault Rifle Energy Gun Medium Laser Ballistic Gun Light Assault Rifle Build | -11 -10 -10 ------- Run | Yrd Mat Min Slots Evolved . | . . . Power . | . . . Propulsion . | . . . Utility . | . . . Weapon . | . . . Parts Attached 27 | 6 21 . Power 6 | 1 5 . Engine 5 | 1 4 . Core 1 | . 1 . Reactor . | . . . Propulsion 7 | 2 5 . Treads . | . . . Leg 7 | 2 5 . Wheel . | . . . Hover . | . . . Flight . | . . . Utility 7 | 1 6 . Device 4 | . 4 . Storage 2 | 1 1 . Processor . | . . . Hackware . | . . . Protection 1 | . 1 . Artifact . | . . . Weapon 7 | 2 5 . Energy Gun 4 | 1 3 . Energy Cannon . | . . . Ballistic Gun 3 | 1 2 . Ballistic Cannon . | . . . Launcher . | . . . Special Weapon . | . . . Impact Weapon . | . . . Slashing Weapon . | . . . Piercing Weapon . | . . . Special Melee Weapon . | . . . Unidentified Prototypes . | . . . Corrupted Parts 1 | . 1 . System Corruption 1 | . 1 . Parts Lost 6 | . 6 . Power 2 | . 2 . Propulsion . | . . . Utility . | . . . Weapon 4 | . 4 . Highest Loss Streak 3 | . 3 . To Critical Strikes . | . . . Average Slot Usage (%) 94 | . 95 85 Engine 12 | . 12 14 Leg 28 | . 28 28 Device 10 | . 10 14 Storage 14 | . 14 14 Protection 1 | . 1 . Energy Gun 14 | . 14 . Ballistic Gun 10 | . 10 14 Peak Build Rating 10 | 6 10 8 Average Rating 7 | 4 7 8 On Entrance 4 | . 6 8 Naked Turns . | . . . Heaviest Build 19 | 13 19 15 Greatest Support 20 | 20 20 20 Greatest Overweight (x) 2 | 2 . . Average Overweight (x) . | . . . Largest Inventory Capacity 10 | 8 10 10 Average Capacity 8 | 6 9 10 Most Carried 10 | 2 10 9 Average Carried 7 | 1 7 9 Final Capacity 10 | 8 10 10 Final Carried 9 | 2 9 9 Class Distribution -------------------- 64% | Mutant 35% | Scavenger-Mutant Dominant Class ---------------- Mutant | -10/Materials Scavenger-Mutant | -10/Mines Resources | -11 -10 -10 ----------- Run | Yrd Mat Min Matter Collected 482 | 235 247 . Remotely . | . . . Salvage Created 535 | . 535 . Parts 32 | . 32 . Haulers Intercepted . | . . . Recyclers Shooed . | . . . Parts Field Recycled . | . . . Retrieved Matter . | . . . Parts Self-Destructed . | . . . Prevented . | . . . Kills | -11 -10 -10 ------- Run | Yrd Mat Min Combat Hostiles Destroyed 13 | . 13 . Guns 12 | . 12 . AOE 1 | . 1 . Classes Destroyed 5 | . 5 . Worker 1 | . 1 . Builder 1 | . 1 . Watcher 1 | . 1 . Swarmer 3 | . 3 . Grunt 10 | . 10 . Best Kill Streak 4 | . 4 . Combat Bots Only 3 | . 3 . Max Kills in Single Turn 2 | . 2 . Gunslinging 1 | . 1 . Exploded 1 | . 1 . Melee . | . . . Uniques/NPCs Destroyed . | . . . Combat | -11 -10 -10 -------- Run | Yrd Mat Min Hostile Shots Fired 85 | . 78 7 Missed 20 | . 19 1 Damage Taken 1074 | . 1002 72 Core 255 | . 242 13 Absorbed by Shields . | . . . Core Remaining (%) 100 | 100 . . Volleys Fired 58 | . 54 4 Largest 2 | . 2 1 Hottest 100 | . 100 20 Shots Fired 99 | . 95 4 Gun 99 | . 95 4 Cannon . | . . . Launcher . | . . . Special . | . . . Kinetic 41 | . 37 4 Thermal 49 | . 49 . Explosive . | . . . Electromagnetic 9 | . 9 . Robot Hit Streak 11 | . 11 3 Robot Miss Streak 4 | . 3 4 Penetration Max . | . . . Secondary Targets 2 | . 2 . Max Gunslinging Chain 1 | . 1 . Shots Hit Robots 68 | . 65 3 Core Hits 30 | . 29 1 Critical Kills . | . . . Critical Parts Destroyed . | . . . Critical Strikes 1 | . 1 . Burn 1 | . 1 . Melee Attacks . | . . . Impact . | . . . Slashing . | . . . Piercing . | . . . Sneak Attacks . | . . . Combat Hostiles . | . . . Follow-up Attacks . | . . . Damage Inflicted 848 | . 822 26 Guns 775 | . 749 26 Cannons . | . . . Explosions 68 | . 68 . Melee . | . . . Ramming 5 | . 5 . Kinetic 210 | . 184 26 Thermal 503 | . 503 . Explosive . | . . . Electromagnetic 130 | . 130 . Impact . | . . . Slashing . | . . . Piercing . | . . . Highest Corruption 3 | . 3 3 Average Corruption 1 | . 1 3 Corruption Purged . | . . . Corruption Blocked . | . . . Effects 5 | . 4 1 Matter Fused 1 | . 1 . Heat Flow Errors 1 | . 1 . Energy Discharges 2 | . 1 1 Data Loss (minor) 1 | . 1 . Overload Shots . | . . . Overflow Damage . | . . . Projectiles . | . . . Explosions . | . . . Melee . | . . . Knockbacks . | . . . Impact . | . . . Kinetic . | . . . Secondary . | . . . Self-Inflicted Damage 32 | . 32 . Shots 1 | . 1 . Rammed . | . . . Targets Rammed 4 | . 2 2 Kicked 4 | . 2 2 Crushed . | . . . Highest Temperature 140 | . 140 . Average Temperature 29 | . 29 . Received Heat Transfer 408 | . 366 42 Siege Activations . | . . . Robots Corrupted . | . . . Combat Hostiles . | . . . Parts Fried . | . . . Impact Corruptions . | . . . Robots Melted . | . . . Combat Hostiles . | . . . Parts Melted 1 | . 1 . Heat Transferred 1324 | . 1324 . Parts Sabotaged . | . . . Parts Stolen . | . . . Parts Stripped . | . . . Power Chain Reactions 1 | . 1 . Alert | -11 -10 -10 ------- Run | Yrd Mat Min Peak Influence 338 | . 338 61 Initial 61 | . . 61 Average 166 | . 183 61 Maximum Alert Level 1 | . 1 . Low Security (%) 66 | 100 62 100 Level 1 33 | . 37 . Level 2 . | . . . Level 3 . | . . . Level 4 . | . . . Level 5 . | . . . High Security . | . . . Max Security . | . . . Squads Dispatched 2 | . 2 . Investigation 1 | . 1 . Extermination . | . . . Reinforcement 1 | . 1 . Assault . | . . . Garrison . | . . . Intercept . | . . . Searches Triggered . | . . . Construction Impeded . | . . . Haulers Reinforced . | . . . Active Scanning Responses . | . . . Cargo Convoy Interrupts . | . . . Stealth | -11 -10 -10 --------- Run | Yrd Mat Min Distress Signals 3 | . 3 . Communications Jammed . | . . . Distress Signals . | . . . Times Spotted 27 | . 25 2 Peak Tracking Total 4 | . 4 2 Tactical Retreats 5 | . 5 . Traps | -11 -10 -10 ------- Run | Yrd Mat Min Traps Triggered 5 | . 5 . Indirectly . | . . . Trap Hack Attempts . | . . . Triggered . | . . . Disarmed . | . . . Reprogrammed . | . . . Reused . | . . . Traps Extracted . | . . . Installed . | . . . Triggered . | . . . Machines | -11 -10 -10 ---------- Run | Yrd Mat Min Machines Disabled 1 | . 1 . Max in Single Turn 1 | . 1 . Machines Repaired . | . . . Machines Dismantled . | . . . Machines Sabotaged . | . . . Overloaded Fab Kills . | . . . Hacking | -11 -10 -10 --------- Run | Yrd Mat Min Machines Accessed 3 | . 3 . Terminals 2 | . 2 . Fabricators . | . . . Repair Stations . | . . . Recycling Units 1 | . 1 . Scanalyzers . | . . . Garrison Access . | . . . Total Hacks 11 | . 11 . Successful 8 | . 8 . Failed 3 | . 3 . Catastrophic . | . . . Database Lockouts . | . . . Manual 10 | . 10 . Terminals 10 | . 10 . Fabricators . | . . . Repair Stations . | . . . Recycling Units 1 | . 1 . Scanalyzers . | . . . Garrison Access . | . . . Terminal Hacks 5 | . 5 . Part Schematic 1 | . 1 . Robot Analysis 3 | . 3 . Terminal Index 1 | . 1 . Fabricator Hacks . | . . . Repair Station Hacks . | . . . Recycling Unit Hacks 1 | . 1 . Retrieve Components 1 | . 1 . Scanalyzer . | . . . Garrison Access Hacks . | . . . Unauthorized Hacks 2 | . 2 . Terminals 2 | . 2 . Botnet 2 | . 2 . Fabricators . | . . . Repair Stations . | . . . Recycling Units . | . . . Scanalyzers . | . . . Garrison Access . | . . . Data Cores Recovered . | . . . Used . | . . . Hacking Detections 2 | . 2 . Full Trace Events . | . . . Feedback Events . | . . . Feedback Blocked . | . . . Robot Schematics Acquired . | . . . Robots Built . | . . . Authchips . | . . . Time . | . . . Total Robot Build Rating . | . . . Part Schematics Acquired 1 | . 1 . Parts Built . | . . . Authchips . | . . . Time . | . . . Total Part Build Rating . | . . . Parts Repaired . | . . . Time . | . . . Parts Recycled . | . . . Recycled Matter . | . . . Retrieved Matter . | . . . Retrieved Components 3 | . 3 . Parts Scanalyzed . | . . . Part Schematics Acquired . | . . . Parts Damaged . | . . . Bothacking | -11 -10 -10 ------------ Run | Yrd Mat Min Used RIF Installer . | . . . Robots Hacked . | . . . Non-combat . | . . . Combat . | . . . Robot Hacks Applied . | . . . Relay Couplers Released . | . . . Fabnet Peak Effective % . | . . . Robots Rewired . | . . . Allies Hacked . | . . . Hacks Repelled . | . . . Allies | -11 -10 -10 -------- Run | Yrd Mat Min Total Allies . | . . . Largest Group . | . . . Highest-Rated Group . | . . . Highest-Rated Ally . | . . . Total Orders . | . . . Ally Attacks . | . . . Total Damage . | . . . Kills . | . . . Allies Corrupted . | . . . Allies Melted . | . . . Intel | -11 -10 -10 ------- Run | Yrd Mat Min Robot Analysis Total 3 | . 3 . Derelict Logs Recovered . | . . . Drone Launches . | . . . Drone Recoveries . | . . . Exploration | -11 -10 -10 ------------- Run | Yrd Mat Min Turns Passed 937 | 70 836 31 Spaces Moved 505 | 48 438 19 Core 19 | 19 . . Treads . | . . . Legs 486 | 29 438 19 Wheels . | . . . Hover . | . . . Flight . | . . . Fastest Speed 50 | 50 120 120 Average Speed 119 | 116 120 120 Slowest Speed 150 | 150 120 120 Overloaded Moves . | . . . Propulsion Burnouts . | . . . Robots Hopped . | . . . Cave-ins Triggered . | . . . Exploration Rate (%) 24 | 4 57 11 Regions Visited 2 Branch Regions 1 Pre-discovered Areas . | . . . Known Exits Taken . | . . . Unknown Exits Taken 2 | 1 1 . Scrap Searched . | . . . Spaces Dug . | . . . Terrain Destroyed 4 | . 4 . Melee . | . . . Projectile . | . . . AOE 4 | . 4 . Terrain Rammed . | . . . Walls Destroyed . | . . . Machines Disabled . | . . . Actions | -11 -10 -10 --------- Run | Yrd Mat Min Total 744 | 59 660 25 Wait 131 | 4 127 . Move 503 | 47 437 19 Hop . | . . . Pick Up 12 | 2 10 . Fast Attach 8 | 6 2 . Attach 5 | . 5 . Detach . | . . . Swap 14 | . 14 . Drop 9 | . 9 . Fire 58 | . 54 4 Melee . | . . . Ram . | . . . Kick 4 | . 2 2 Crush . | . . . Escape Stasis . | . . . Rewire . | . . . Trap . | . . . Miscellaneous . | . . . Route ------- -11/Scrapyard -10/Materials (discovered 2 exits: [*Mat] / [*Min]) -10/Mines History --------- Turn | Location | Event 3 | -11/Scrapyard | Discovered new exit (range 16) 71 | -11/Scrapyard | Entered Materials 301 | -10/Materials | Build established: Mutant 545 | -10/Materials | Discovered new exit (range 10) 678 | -10/Materials | Core integrity fell below 50% 773 | -10/Materials | Discovered new exit (range 6) 774 | -10/Materials | Core integrity fell below 20% 824 | -10/Materials | Lost 3 parts (1p2w) 907 | -10/Materials | Entered Mines 938 | -10/Mines | Destroyed by G-47 Trooper with Particle Gun Last Messages --------------- 00794_ G-47 Trooper destroyed. 00795_ U-05 Engineer lays Concrete. 00795_ Acquired 45 matter. 00796_ K-01 Serf collects debris. 00796_ U-05 Engineer lays Concrete. 00799_ K-01 Serf collects debris. 00803_ Dropped Aluminum Leg. 00816_ Acquired 57 matter. 00823_ Acquired Lgt. Ion Engine. 00831_ Acquired 20 matter. 00897_ Triggered EMP Trap. 00897_ A bubble of electromagnetic force engulfs the area. 00897_ Door malfunctions. LOCATION=UNKNOWN GOAL=ESCAPE Something is scanning the area. 00913_ Kicked T-07 Excavator. 00916_ Kicked T-07 Excavator out of the way. 00917_ System corrupted: Energy discharge (-46). Map ----- +----------------------------------------------------+ | ????????????????????????????????????????? | | ????????????????????????????????????????? | | ????????????????????????????????????????? | | ????????????????????????????????????????? | | ????????????????????????????????????????? | | ????????????????????????????????????????? | | ????????????????????????????????????????? | | ????????????????????????????????????????? | | ????????????????????????????????????????? | | ????????????????????????????????????????? | | ????????????????????????????????????????? | | ????????????????????????????????????????? | | ????????????????????????????????????????? | | ????????????????????????????????????????? | | ????????????????????????????????????????? | | ????????????????????????????????????????? | | ????????????????????????????????????????? | | ????????????????????????????????????????? | | ???????????????????####?????????????????? | | ??????????????????## ##????????????????? | | ??????????????????# ####?????????????? | | ??????????????????# ###???????????? | | ???????????????????# ###?????????? | | ???????????????????### ##????????? | | ?????????????????????### g #????????? | | ???????????????????????##@ g #????????? | | ????????????????????????#### ##????????? | | ???????????????????????????# ##?????????? | | ???????????????????######??#%#?###??????? | | ?????????????????### ## ## ##?????? | | ?????????????????# #?????? | | ????????????? #?????? | | ????????????? ## #?????? | | ????????????? ### ### ##????? | | ?????????????? ?????##### #????? | | ??????????????????????????# #???? | | ??????????????????????????# #??? | | ??????????????????????????# #??? | | ?????????????????????????# #??? | | ?????????????????????????# #??? | | ?????????????????????????# ### #??? | | ?????????????????????????# #??# ##??? | | ?????????????????????????## ##???##???? | | ??????????????????????????####??????????? | | ????????????????????????????????????????? | | ????????????????????????????????????????? | | ????????????????????????????????????????? | | ????????????????????????????????????????? | | ????????????????????????????????????????? | | ????????????????????????????????????????? | +----------------------------------------------------+ Best States ------------- Heat Dissipation 39 Energy Generation 14 Energy Capacity 250 Matter Stores 300 Matter Capacity 300 Sight Range 16 Terrain Scan Density 10 Utility Shielding 33 Evasion (%) 55 Item Schematics ----------------- ECM Suite | -10/Materials | Hacked Robot Schematics ------------------ None Fabricated ------------ Nothing Alien Tech Used ----------------- None Achievements -------------- None Challenges ------------ None Game ------ Seed SubdwellerBombLance Manual? 0 Play Time 00:07:23 Cumulative 136.9 hours Start 2024.11.04 @ 14:38:16 End 2024.11.04 @ 14:45:24 Sessions 1 Manual Loads 0 Difficulty Rogue Special Mode None Game No. 70 Rogue 7 Adventurer 63 Explorer 0 Win Type - Total 6 Types 6/0/0/0/0/0/0/0/0 Lore% 65 Gallery% 65 Achievement% 54 Wizard Run 0 Options --------- Layout 1 ASCII 0 Keyboard 1 Movement Vi Keybinds 0 Fullscreen 2 Font 28/Terminus Map View 50x43 Zoom Use 0% Tactical HUD 1 Map Filters NONE Filters NONE Steam 1 RUN: 52eb4f4c-c148-47ed-abb6-ce33e38f6ef3